[Event "*** Titled Tuesday Blitz"]
[Site "Chess.com"]
[Date "2021.03.02"]
[Round "7"]
[White "bratkoo"]
[Black "anpospan"]
[Result "1-0"]
[WhiteElo "2515"]
[BlackElo "2373"]
[TimeControl "180+1"]
[EndTime "11:19:41 PST"]
[Termination "bratkoo won by resignation"]

1. e4 {[%clk 0:02:57.9]} 1... Nc6 {[%clk 0:02:59.5]} 2. Nf3 {[%clk 0:02:57.4]}
2... d6 {[%clk 0:02:59.4]} 3. d4 {[%clk 0:02:56.8]} 3... Nf6 {[%clk 0:02:59.8]}
4. Nc3 {[%clk 0:02:55.8]} 4... Bg4 {[%clk 0:02:59.5]} 5. h3 {[%clk 0:02:54.9]}
5... Bxf3 {[%clk 0:02:56.9]} 6. gxf3 {[%clk 0:02:55.8]} 6... e5 {[%clk
0:02:55.2]} 7. d5 {[%clk 0:02:52]} 7... Ne7 {[%clk 0:02:51.3]} 8. Be3 {[%clk
0:02:51.5]} 8... Ng6 {[%clk 0:02:50.1]} 9. Bb5+ {[%clk 0:02:47.7]} 9... Nd7
{[%clk 0:02:49.4]} 10. Qd2 {[%clk 0:02:45.9]} 10... a6 {[%clk 0:02:42.5]} 11.
Bf1 {[%clk 0:02:43.6]} 11... Qh4 {[%clk 0:02:40.4]} 12. Bg5 {[%clk 0:02:38.9]}
12... Qh5 {[%clk 0:02:40.2]} 13. Be2 {[%clk 0:02:39.2]} 13... Nf4 {[%clk
0:02:30.7]} 14. Bxf4 {[%clk 0:02:39.3]} 14... exf4 {[%clk 0:02:29.7]} 15. Qxf4
{[%clk 0:02:40]} 15... g6 {[%clk 0:02:25.7]} 16. Qg4 {[%clk 0:02:30.9]} 16...
Qe5 {[%clk 0:02:19.7]} 17. f4 {[%clk 0:02:28.5]} 17... Qd4 {[%clk 0:02:15.4]}
18. Qg3 {[%clk 0:02:09.6]} 18... Bg7 {[%clk 0:02:09.6]} 19. a3 {[%clk
0:01:51.8]} 19... O-O-O {[%clk 0:02:07.5]} 20. Qd3 {[%clk 0:01:43.5]} 20... Qc5
{[%clk 0:02:01.9]} 21. Bg4 {[%clk 0:01:18.8]} 21... f5 {[%clk 0:01:56.5]} 22.
exf5 {[%clk 0:01:18.4]} 22... Rhe8+ {[%clk 0:01:37.8]} 23. Kf1 {[%clk 0:01:18]}
23... h5 {[%clk 0:01:33.4]} 24. f6 {[%clk 0:01:09.9]} 24... Bxf6 {[%clk
0:01:25.9]} 25. Ne4 {[%clk 0:01:07.6]} 25... Rxe4 {[%clk 0:01:15.2]} 26. Bxd7+
{[%clk 0:01:07.3]} 26... Rxd7 {[%clk 0:01:13.2]} 27. Qxe4 {[%clk 0:01:08.2]}
27... Re7 {[%clk 0:01:09.2]} 28. Qd3 {[%clk 0:00:53.2]} 28... Bh4 {[%clk
0:01:06.5]} 29. Rh2 {[%clk 0:00:48.1]} 29... Kb8 {[%clk 0:00:49.8]} 30. Re1
{[%clk 0:00:41.1]} 30... Rf7 {[%clk 0:00:49.8]} 31. b4 {[%clk 0:00:37.6]} 31...
Qb6 {[%clk 0:00:43.9]} 32. Re8+ {[%clk 0:00:36.6]} 32... Ka7 {[%clk 0:00:43.9]}
33. Qe3 {[%clk 0:00:36.8]} 33... a5 {[%clk 0:00:30.8]} 34. bxa5 {[%clk
0:00:35.5]} 34... Qc5 {[%clk 0:00:27.1]} 35. Rg2 {[%clk 0:00:34.5]} 35... Bf6
{[%clk 0:00:22.2]} 36. Qxc5+ {[%clk 0:00:32.7]} 36... dxc5 {[%clk 0:00:22.2]}
37. Rxg6 {[%clk 0:00:32.8]} 37... Bd4 {[%clk 0:00:21.9]} 38. Rgg8 {[%clk
0:00:33]} 38... Ka6 {[%clk 0:00:20.5]} 39. c4 {[%clk 0:00:33.2]} 39... Kxa5
{[%clk 0:00:19.5]} 40. Ra8+ {[%clk 0:00:31.3]} 40... Kb6 {[%clk 0:00:19.5]} 41.
Rg6+ {[%clk 0:00:32]} 41... c6 {[%clk 0:00:19]} 42. dxc6 {[%clk 0:00:32]} 42...
bxc6 {[%clk 0:00:19.2]} 43. Rc8 {[%clk 0:00:31]} 43... Rxf4 {[%clk 0:00:18.9]}
44. Rcxc6+ {[%clk 0:00:31.1]} 44... Kb7 {[%clk 0:00:19.1]} 45. Rb6+ {[%clk
0:00:30.8]} 45... Kc7 {[%clk 0:00:19.4]} 46. Rgc6+ {[%clk 0:00:30.1]} 46... Kd7
{[%clk 0:00:19.4]} 47. Rh6 {[%clk 0:00:29.7]} 47... Rxf2+ {[%clk 0:00:18.2]} 48.
Ke1 {[%clk 0:00:30.4]} 48... Ra2 {[%clk 0:00:15.7]} 49. Rb7+ {[%clk 0:00:30.2]}
49... Kc8 {[%clk 0:00:15.8]} 50. Rf7 {[%clk 0:00:28.3]} 50... Ra1+ {[%clk
0:00:15.4]} 51. Ke2 {[%clk 0:00:28.2]} 51... Ra2+ {[%clk 0:00:15.2]} 52. Kd3
{[%clk 0:00:25.7]} 52... Rxa3+ {[%clk 0:00:14.9]} 53. Ke4 {[%clk 0:00:26.2]}
53... Re3+ {[%clk 0:00:14.3]} 54. Kd5 {[%clk 0:00:25.9]} 54... Re8 {[%clk
0:00:13.1]} 55. Ra6 {[%clk 0:00:24.9]} 55... Kb8 {[%clk 0:00:12.6]} 56. Kc6
{[%clk 0:00:25.3]} 56... Re6+ {[%clk 0:00:12.4]} 57. Kb5 {[%clk 0:00:25]} 57...
Rxa6 {[%clk 0:00:11.6]} 58. Kxa6 {[%clk 0:00:25.5]} 58... Kc8 {[%clk 0:00:12.1]}
59. Kb6 {[%clk 0:00:25.4]} 59... h4 {[%clk 0:00:11.3]} 60. Rf4 {[%clk
0:00:23.7]} 60... Kd7 {[%clk 0:00:11.2]} 61. Rxh4 {[%clk 0:00:23]} 61... Ke6
{[%clk 0:00:11.1]} 62. Rh5 {[%clk 0:00:22.5]} 62... Be3 {[%clk 0:00:08.5]} 63.
Kc6 {[%clk 0:00:22.3]} 63... Kf6 {[%clk 0:00:08.3]} 64. Rxc5 {[%clk 0:00:21.7]}
64... Kg6 {[%clk 0:00:08.3]} 65. Re5 {[%clk 0:00:21.3]} 65... Bf4 {[%clk
0:00:07.7]} 66. Kd5 {[%clk 0:00:21.7]} 1-0

[Event "*** Titled Tuesday Blitz"]
[Site "Chess.com"]
[Date "2021.03.02"]
[Round "7"]
[White "Alexandercs432"]
[Black "zurzan"]
[Result "0-1"]
[WhiteElo "2177"]
[BlackElo "2059"]
[TimeControl "180+1"]
[EndTime "11:19:43 PST"]
[Termination "zurzan won on time"]

1. e4 {[%clk 0:02:59.9]} 1... Nf6 {[%clk 0:02:58.8]} 2. e5 {[%clk 0:02:59.9]}
2... Nd5 {[%clk 0:02:59]} 3. d4 {[%clk 0:03:00.8]} 3... d6 {[%clk 0:02:58.7]} 4.
Nf3 {[%clk 0:03:01.2]} 4... g6 {[%clk 0:02:57.8]} 5. Bc4 {[%clk 0:03:00.9]} 5...
Nb6 {[%clk 0:02:57]} 6. Bb3 {[%clk 0:03:01.3]} 6... Bg7 {[%clk 0:02:56.8]} 7.
Ng5 {[%clk 0:02:58.3]} 7... O-O {[%clk 0:02:56.4]} 8. e6 {[%clk 0:02:47.7]} 8...
f6 {[%clk 0:02:49.9]} 9. Nf7 {[%clk 0:02:46.4]} 9... Qe8 {[%clk 0:02:50.2]} 10.
d5 {[%clk 0:02:39.1]} 10... a5 {[%clk 0:02:46.5]} 11. a3 {[%clk 0:02:35.2]}
11... a4 {[%clk 0:02:45.9]} 12. Ba2 {[%clk 0:02:35.2]} 12... Rxf7 {[%clk
0:01:55.5]} 13. exf7+ {[%clk 0:02:36.1]} 13... Qxf7 {[%clk 0:01:56.4]} 14. O-O
{[%clk 0:02:36]} 14... f5 {[%clk 0:01:52.3]} 15. Nc3 {[%clk 0:02:36.3]} 15...
N8d7 {[%clk 0:01:47.9]} 16. Re1 {[%clk 0:02:35.2]} 16... Ne5 {[%clk 0:01:47.4]}
17. h3 {[%clk 0:02:31.7]} 17... Bd7 {[%clk 0:01:45.7]} 18. f4 {[%clk 0:02:30.7]}
18... Nec4 {[%clk 0:01:44.5]} 19. Qe2 {[%clk 0:02:28.7]} 19... Bb5 {[%clk
0:00:22.2]} 20. Nxb5 {[%clk 0:02:16.9]} 20... Qxd5 {[%clk 0:00:17.8]} 21. Nxc7
{[%clk 0:02:08.2]} 21... Qc5+ {[%clk 0:00:15.7]} 22. Kh1 {[%clk 0:01:44.9]}
22... Qxc7 {[%clk 0:00:16.6]} 23. Qxe7 {[%clk 0:01:27.6]} 23... Qxe7 {[%clk
0:00:16.6]} 24. Rxe7 {[%clk 0:01:28.5]} 24... Kf8 {[%clk 0:00:15.7]} 25. Rxb7
{[%clk 0:00:52.8]} 25... d5 {[%clk 0:00:14.8]} 26. Rb1 {[%clk 0:00:33.1]} 26...
Rc8 {[%clk 0:00:13.3]} 27. c3 {[%clk 0:00:17.4]} 27... Na8 {[%clk 0:00:10]} 28.
Rb4 {[%clk 0:00:13.8]} 28... Nd6 {[%clk 0:00:08.5]} 29. Rxa4 {[%clk 0:00:12.6]}
29... Nc7 {[%clk 0:00:08.4]} 30. Be3 {[%clk 0:00:12.3]} 30... Ke7 {[%clk
0:00:08.4]} 31. Bd4 {[%clk 0:00:12.8]} 31... Bf8 {[%clk 0:00:07.1]} 32. Re1+
{[%clk 0:00:11.6]} 32... Kd7 {[%clk 0:00:08]} 33. Be5 {[%clk 0:00:09.3]} 33...
Be7 {[%clk 0:00:08.3]} 34. Ra7 {[%clk 0:00:09.8]} 34... Kc6 {[%clk 0:00:07.7]}
35. Bxd6 {[%clk 0:00:09.1]} 35... Bxd6 {[%clk 0:00:08.4]} 36. Bb1 {[%clk
0:00:09.2]} 36... Nb5 {[%clk 0:00:08]} 37. Bd3 {[%clk 0:00:10.1]} 37... Nxa7
{[%clk 0:00:07.6]} 38. a4 {[%clk 0:00:09.7]} 38... Rc7 {[%clk 0:00:07.8]} 39. b4
{[%clk 0:00:10.6]} 39... Nc8 {[%clk 0:00:07.3]} 40. b5+ {[%clk 0:00:10.4]} 40...
Kc5 {[%clk 0:00:07.7]} 41. Re6 {[%clk 0:00:10.4]} 41... Nb6 {[%clk 0:00:06.8]}
42. Kh2 {[%clk 0:00:10.1]} 42... Nc4 {[%clk 0:00:06.9]} 43. g3 {[%clk
0:00:09.4]} 43... d4 {[%clk 0:00:06.3]} 44. h4 {[%clk 0:00:09.5]} 44... dxc3
{[%clk 0:00:06.2]} 45. Re1 {[%clk 0:00:10.4]} 45... c2 {[%clk 0:00:05.8]} 46.
Rc1 {[%clk 0:00:11.3]} 46... Kd4 {[%clk 0:00:05.3]} 47. Bxc2 {[%clk 0:00:07.6]}
47... Ne3 {[%clk 0:00:05.2]} 48. Rd1+ {[%clk 0:00:08.5]} 48... Kc5 {[%clk
0:00:03.4]} 49. Rd2 {[%clk 0:00:06.1]} 49... Nc4 {[%clk 0:00:03.4]} 50. Re2
{[%clk 0:00:04.4]} 50... Bf8 {[%clk 0:00:02.9]} 51. Bd3 {[%clk 0:00:04.5]} 51...
Nd6 {[%clk 0:00:01.6]} 0-1

[Event "*** Titled Tuesday Blitz"]
[Site "Chess.com"]
[Date "2021.03.02"]
[Round "7"]
[White "PavelChernomordik"]
[Black "ecwinslow"]
[Result "1/2-1/2"]
[WhiteElo "2368"]
[BlackElo "2244"]
[TimeControl "180+1"]
[EndTime "11:19:46 PST"]
[Termination "Game drawn - insufficient material"]

1. e4 {[%clk 0:03:00.9]} 1... c5 {[%clk 0:02:59]} 2. Nc3 {[%clk 0:03:00.5]} 2...
g6 {[%clk 0:02:57.2]} 3. f4 {[%clk 0:02:58.5]} 3... Bg7 {[%clk 0:02:56.3]} 4.
Nf3 {[%clk 0:02:58.7]} 4... d6 {[%clk 0:02:51.1]} 5. Bb5+ {[%clk 0:02:57.4]}
5... Bd7 {[%clk 0:02:50.5]} 6. Bxd7+ {[%clk 0:02:56.6]} 6... Qxd7 {[%clk
0:02:49.6]} 7. O-O {[%clk 0:02:57.5]} 7... Nc6 {[%clk 0:02:49.5]} 8. d3 {[%clk
0:02:57.1]} 8... Nf6 {[%clk 0:02:47.4]} 9. Qe1 {[%clk 0:02:56.7]} 9... O-O
{[%clk 0:02:44.5]} 10. h3 {[%clk 0:02:56.2]} 10... d5 {[%clk 0:02:37.7]} 11. e5
{[%clk 0:02:51.9]} 11... Ne8 {[%clk 0:02:36.6]} 12. Bd2 {[%clk 0:02:45.8]} 12...
Nc7 {[%clk 0:02:32.2]} 13. Qh4 {[%clk 0:02:45.1]} 13... f6 {[%clk 0:02:31.6]}
14. Rae1 {[%clk 0:02:38.8]} 14... Rae8 {[%clk 0:02:27.1]} 15. Qg3 {[%clk
0:02:27.4]} 15... b6 {[%clk 0:02:19.6]} 16. h4 {[%clk 0:02:24.7]} 16... fxe5
{[%clk 0:02:10.4]} 17. Nxe5 {[%clk 0:02:16.4]} 17... Nxe5 {[%clk 0:02:07.8]} 18.
fxe5 {[%clk 0:02:16.1]} 18... Ne6 {[%clk 0:02:07.6]} 19. h5 {[%clk 0:02:11.4]}
19... gxh5 {[%clk 0:02:00.3]} 20. Bh6 {[%clk 0:02:06.6]} 20... Rxf1+ {[%clk
0:01:57]} 21. Rxf1 {[%clk 0:02:05.8]} 21... Rf8 {[%clk 0:01:54.4]} 22. Rxf8+
{[%clk 0:01:59.9]} 22... Kxf8 {[%clk 0:01:51.1]} 23. Qf3+ {[%clk 0:01:52.2]}
23... Kg8 {[%clk 0:01:47.5]} 24. Bxg7 {[%clk 0:01:50.5]} 24... Nxg7 {[%clk
0:01:41.4]} 25. Nxd5 {[%clk 0:01:44.1]} 25... Qe6 {[%clk 0:01:36.4]} 26. Qe4
{[%clk 0:01:41]} 26... h6 {[%clk 0:01:28.6]} 27. c4 {[%clk 0:01:38.7]} 27... Kf7
{[%clk 0:01:26.9]} 28. Nf4 {[%clk 0:01:31.9]} 28... Qf5 {[%clk 0:01:16.7]} 29.
Qd5+ {[%clk 0:01:22.4]} 29... e6 {[%clk 0:01:16.1]} 30. Qf3 {[%clk 0:01:17.1]}
30... h4 {[%clk 0:01:07.4]} 31. Qf2 {[%clk 0:01:07.2]} 31... Qxe5 {[%clk
0:00:56]} 32. Qxh4 {[%clk 0:01:02.2]} 32... Qf6 {[%clk 0:00:54.1]} 33. Qf2
{[%clk 0:00:58.8]} 33... e5 {[%clk 0:00:48]} 34. Nd5 {[%clk 0:00:57.8]} 34...
Qxf2+ {[%clk 0:00:47.5]} 35. Kxf2 {[%clk 0:00:57.5]} 35... Ne6 {[%clk
0:00:44.1]} 36. Kf3 {[%clk 0:00:53.1]} 36... Ng5+ {[%clk 0:00:42.9]} 37. Ke3
{[%clk 0:00:51.4]} 37... Ke6 {[%clk 0:00:40.2]} 38. Nc7+ {[%clk 0:00:50.1]}
38... Kd7 {[%clk 0:00:38.1]} 39. Nd5 {[%clk 0:00:48.6]} 39... Kd6 {[%clk
0:00:33.6]} 40. g4 {[%clk 0:00:47.1]} 40... Ne6 {[%clk 0:00:20.3]} 41. Nf6
{[%clk 0:00:44.9]} 41... Ke7 {[%clk 0:00:16.9]} 42. Ng8+ {[%clk 0:00:44]} 42...
Kf7 {[%clk 0:00:14.4]} 43. Nxh6+ {[%clk 0:00:43.3]} 43... Kg6 {[%clk 0:00:14.6]}
44. Nf5 {[%clk 0:00:41]} 44... Kg5 {[%clk 0:00:14.5]} 45. Ke4 {[%clk 0:00:38.1]}
45... Kxg4 {[%clk 0:00:13.1]} 46. Kxe5 {[%clk 0:00:37.9]} 46... Nf4 {[%clk
0:00:13.3]} 47. d4 {[%clk 0:00:37.3]} 47... cxd4 {[%clk 0:00:10.4]} 48. Nh6+
{[%clk 0:00:30.5]} 48... Kf3 {[%clk 0:00:10]} 49. Kxd4 {[%clk 0:00:29.8]} 49...
Ne2+ {[%clk 0:00:08.3]} 50. Kd3 {[%clk 0:00:28.9]} 50... Nc1+ {[%clk 0:00:07.8]}
51. Kc2 {[%clk 0:00:23.8]} 51... Nxa2 {[%clk 0:00:07.5]} 52. Nf5 {[%clk
0:00:24.1]} 52... Ke4 {[%clk 0:00:07.5]} 53. Nd6+ {[%clk 0:00:23.6]} 53... Kd4
{[%clk 0:00:07.7]} 54. Kb3 {[%clk 0:00:18.8]} 54... Nc1+ {[%clk 0:00:06.9]} 55.
Kc2 {[%clk 0:00:17.8]} 55... Ne2 {[%clk 0:00:04.3]} 56. b3 {[%clk 0:00:16.1]}
56... Kc5 {[%clk 0:00:03.5]} 57. Nc8 {[%clk 0:00:15.1]} 57... a5 {[%clk
0:00:02.6]} 58. Na7 {[%clk 0:00:13.8]} 58... Nd4+ {[%clk 0:00:01.3]} 59. Kc3
{[%clk 0:00:13.6]} 59... b5 {[%clk 0:00:01.6]} 60. cxb5 {[%clk 0:00:11.7]} 60...
Nxb5+ {[%clk 0:00:01.8]} 61. Nxb5 {[%clk 0:00:11.3]} 61... Kxb5 {[%clk
0:00:02.2]} 62. Kc2 {[%clk 0:00:11.4]} 62... a4 {[%clk 0:00:02.3]} 63. bxa4+
{[%clk 0:00:10.8]} 63... Kxa4 {[%clk 0:00:02.4]} 1/2-1/2

[Event "*** Titled Tuesday Blitz"]
[Site "Chess.com"]
[Date "2021.03.02"]
[Round "7"]
[White "organdzievhren"]
[Black "Aisen1011"]
[Result "1-0"]
[WhiteElo "2441"]
[BlackElo "2230"]
[TimeControl "180+1"]
[EndTime "11:19:47 PST"]
[Termination "organdzievhren won by resignation"]

1. e4 {[%clk 0:03:00.9]} 1... e5 {[%clk 0:02:59.9]} 2. Nf3 {[%clk 0:03:01.2]}
2... Nc6 {[%clk 0:03:00.3]} 3. Bb5 {[%clk 0:03:01.8]} 3... a6 {[%clk 0:03:00.6]}
4. Ba4 {[%clk 0:03:02.1]} 4... Nge7 {[%clk 0:03:00.6]} 5. O-O {[%clk 0:03:02.7]}
5... g6 {[%clk 0:03:01]} 6. d4 {[%clk 0:03:01.7]} 6... exd4 {[%clk 0:03:01.1]}
7. Bxc6 {[%clk 0:03:01.8]} 7... Nxc6 {[%clk 0:03:00.5]} 8. Nxd4 {[%clk
0:03:01.9]} 8... Bg7 {[%clk 0:03:01]} 9. Be3 {[%clk 0:03:01.7]} 9... O-O {[%clk
0:03:01]} 10. Nc3 {[%clk 0:02:58.3]} 10... d6 {[%clk 0:03:00.9]} 11. Nxc6 {[%clk
0:02:58.3]} 11... bxc6 {[%clk 0:03:01]} 12. Bd4 {[%clk 0:02:57.7]} 12... Bb7
{[%clk 0:03:01.1]} 13. Bxg7 {[%clk 0:02:57.3]} 13... Kxg7 {[%clk 0:03:02]} 14.
Qd4+ {[%clk 0:02:51.7]} 14... Qf6 {[%clk 0:03:01.5]} 15. Qxf6+ {[%clk
0:02:51.3]} 15... Kxf6 {[%clk 0:03:02.4]} 16. Rad1 {[%clk 0:02:49.1]} 16... Rad8
{[%clk 0:03:00.6]} 17. Rd2 {[%clk 0:02:48.7]} 17... d5 {[%clk 0:02:56.3]} 18.
Rfd1 {[%clk 0:02:44.3]} 18... Rfe8 {[%clk 0:02:52.9]} 19. f3 {[%clk 0:02:25.4]}
19... Ke6 {[%clk 0:01:57.9]} 20. Na4 {[%clk 0:02:21.8]} 20... Bc8 {[%clk
0:01:41.7]} 21. Nc5+ {[%clk 0:02:17.8]} 21... Ke5 {[%clk 0:01:26]} 22. c3 {[%clk
0:02:09.7]} 22... f5 {[%clk 0:01:22.8]} 23. Kf2 {[%clk 0:01:50.2]} 23... fxe4
{[%clk 0:01:17.4]} 24. fxe4 {[%clk 0:01:50.5]} 24... Rf8+ {[%clk 0:01:12.8]} 25.
Ke3 {[%clk 0:01:41.6]} 25... Rd6 {[%clk 0:00:59.7]} 26. Nd3+ {[%clk 0:01:34]}
26... Ke6 {[%clk 0:00:51.8]} 27. exd5+ {[%clk 0:01:25.9]} 27... cxd5 {[%clk
0:00:48.9]} 28. Nf4+ {[%clk 0:01:24.6]} 28... Kd7 {[%clk 0:00:22.7]} 29. Rxd5
{[%clk 0:01:18.5]} 29... Bb7 {[%clk 0:00:20.5]} 30. Rxd6+ {[%clk 0:01:12.2]}
30... cxd6 {[%clk 0:00:21.4]} 31. h4 {[%clk 0:01:01.9]} 31... Rf6 {[%clk
0:00:13.9]} 32. Rd4 {[%clk 0:00:55.6]} 32... h6 {[%clk 0:00:12.7]} 33. Rb4
{[%clk 0:00:55.2]} 33... Bc6 {[%clk 0:00:06.5]} 34. Rb6 {[%clk 0:00:45.5]} 34...
g5 {[%clk 0:00:05.9]} 35. hxg5 {[%clk 0:00:45.4]} 35... hxg5 {[%clk 0:00:06.1]}
36. Nh5 {[%clk 0:00:42.8]} 36... Rh6 {[%clk 0:00:06.2]} 37. g4 {[%clk
0:00:41.9]} 37... a5 {[%clk 0:00:04.5]} 38. Ra6 {[%clk 0:00:41.4]} 38... a4
{[%clk 0:00:04.6]} 39. Kd4 {[%clk 0:00:38.7]} 39... Bf3 {[%clk 0:00:02.2]} 40.
Ra7+ {[%clk 0:00:33.9]} 40... Kc6 {[%clk 0:00:02.5]} 41. Ng3 {[%clk 0:00:30.3]}
41... Bxg4 {[%clk 0:00:02.8]} 42. Ne4 {[%clk 0:00:30.6]} 42... Rh4 {[%clk
0:00:02.7]} 43. Ra6+ {[%clk 0:00:29.6]} 43... Kc7 {[%clk 0:00:03]} 44. Rxa4
{[%clk 0:00:22.5]} 44... Bf5 {[%clk 0:00:03.2]} 45. Kd5 {[%clk 0:00:20.5]} 45...
g4 {[%clk 0:00:03.4]} 46. Nxd6 {[%clk 0:00:14.9]} 46... Bd7 {[%clk 0:00:02.6]}
47. Ra7+ {[%clk 0:00:13.5]} 47... Kd8 {[%clk 0:00:03.1]} 48. Nf7+ {[%clk
0:00:13.2]} 48... Ke7 {[%clk 0:00:03.3]} 49. Ne5 {[%clk 0:00:13.9]} 49... Rh5
{[%clk 0:00:02.5]} 50. Rxd7+ {[%clk 0:00:14.8]} 50... Ke8 {[%clk 0:00:03]} 51.
Rg7 {[%clk 0:00:14.9]} 51... g3 {[%clk 0:00:03.2]} 52. Rxg3 {[%clk 0:00:13]}
52... Rh2 {[%clk 0:00:03.5]} 53. b4 {[%clk 0:00:11.6]} 53... Rxa2 {[%clk
0:00:04.4]} 54. b5 {[%clk 0:00:12]} 54... Rd2+ {[%clk 0:00:04.5]} 55. Kc6 {[%clk
0:00:11.5]} 55... Rc2 {[%clk 0:00:04.9]} 56. Nd7 {[%clk 0:00:10.7]} 56... Rxc3+
{[%clk 0:00:03.9]} 57. Rxc3 {[%clk 0:00:09.8]} 1-0

[Event "*** Titled Tuesday Blitz"]
[Site "Chess.com"]
[Date "2021.03.02"]
[Round "7"]
[White "NTBT_DHS"]
[Black "LawrenceTrent"]
[Result "1-0"]
[WhiteElo "2774"]
[BlackElo "2557"]
[TimeControl "180+1"]
[EndTime "11:19:49 PST"]
[Termination "NTBT_DHS won on time"]

1. d4 {[%clk 0:03:00.9]} 1... d5 {[%clk 0:02:59.8]} 2. c4 {[%clk 0:02:58.9]}
2... e5 {[%clk 0:02:59.6]} 3. dxe5 {[%clk 0:02:55.6]} 3... d4 {[%clk 0:02:59.8]}
4. Nf3 {[%clk 0:02:55.1]} 4... Nc6 {[%clk 0:03:00.2]} 5. a3 {[%clk 0:02:54.6]}
5... Nge7 {[%clk 0:02:59.9]} 6. e3 {[%clk 0:02:44.4]} 6... Bg4 {[%clk
0:02:58.4]} 7. Be2 {[%clk 0:02:37.9]} 7... dxe3 {[%clk 0:02:50.8]} 8. Bxe3
{[%clk 0:02:32.7]} 8... Qxd1+ {[%clk 0:02:46.1]} 9. Bxd1 {[%clk 0:02:33]} 9...
O-O-O {[%clk 0:02:41.1]} 10. Nbd2 {[%clk 0:02:29.5]} 10... Ng6 {[%clk
0:02:37.6]} 11. Ng5 {[%clk 0:02:21.2]} 11... Bxd1 {[%clk 0:02:33.4]} 12. Rxd1
{[%clk 0:02:22.1]} 12... Ngxe5 {[%clk 0:02:32]} 13. O-O {[%clk 0:02:11.3]} 13...
h6 {[%clk 0:02:28.6]} 14. Ngf3 {[%clk 0:02:09.7]} 14... a5 {[%clk 0:02:14.7]}
15. Nxe5 {[%clk 0:01:44]} 15... Nxe5 {[%clk 0:02:14.1]} 16. Rc1 {[%clk 0:01:38]}
16... Be7 {[%clk 0:02:01.5]} 17. h3 {[%clk 0:01:34.7]} 17... Rhe8 {[%clk
0:02:01.2]} 18. Rc2 {[%clk 0:01:34.1]} 18... Nd3 {[%clk 0:01:36]} 19. Rb1 {[%clk
0:01:21.9]} 19... a4 {[%clk 0:01:34.6]} 20. Ne4 {[%clk 0:01:11.9]} 20... f5
{[%clk 0:01:33.2]} 21. Nc3 {[%clk 0:01:09.7]} 21... f4 {[%clk 0:01:32.6]} 22.
Bd2 {[%clk 0:01:09.3]} 22... Bc5 {[%clk 0:01:18.2]} 23. Kf1 {[%clk 0:01:00]}
23... Bxf2 {[%clk 0:01:13.1]} 24. Bxf4 {[%clk 0:00:54.4]} 24... Rf8 {[%clk
0:01:06.7]} 25. Nd5 {[%clk 0:00:52.2]} 25... Bg3 {[%clk 0:01:01.9]} 26. Ne7+
{[%clk 0:00:38.3]} 26... Kb8 {[%clk 0:01:01.6]} 27. Ng6 {[%clk 0:00:37.7]} 27...
Rf6 {[%clk 0:01:01.4]} 28. Rd1 {[%clk 0:00:29.9]} 28... Bxf4 {[%clk 0:00:56.4]}
29. Nxf4 {[%clk 0:00:27.4]} 29... Rxf4+ {[%clk 0:00:56.5]} 30. Ke2 {[%clk
0:00:27.5]} 30... Re4+ {[%clk 0:00:55.9]} 31. Kf3 {[%clk 0:00:25.4]} 31... Ree8
{[%clk 0:00:51.9]} 32. Kg3 {[%clk 0:00:19.8]} 32... Nc5 {[%clk 0:00:51.1]} 33.
Rf1 {[%clk 0:00:18.9]} 33... Rd3+ {[%clk 0:00:48.9]} 34. Kh4 {[%clk 0:00:18.1]}
34... b6 {[%clk 0:00:47.8]} 35. Rf7 {[%clk 0:00:17.8]} 35... Rd7 {[%clk
0:00:38.7]} 36. Rcf2 {[%clk 0:00:17]} 36... Ree7 {[%clk 0:00:38.1]} 37. Rf8+
{[%clk 0:00:16]} 37... Kb7 {[%clk 0:00:38.1]} 38. Kh5 {[%clk 0:00:16.9]} 38...
Nd3 {[%clk 0:00:37.6]} 39. R2f5 {[%clk 0:00:16.1]} 39... Nxb2 {[%clk 0:00:36.2]}
40. Rg8 {[%clk 0:00:15.3]} 40... Nxc4 {[%clk 0:00:35.8]} 41. Kg6 {[%clk
0:00:14.7]} 41... Nxa3 {[%clk 0:00:35.4]} 42. Rff8 {[%clk 0:00:14.4]} 42... b5
{[%clk 0:00:34.4]} 43. Ra8 {[%clk 0:00:14]} 43... Nc4 {[%clk 0:00:33.4]} 44.
Rgb8+ {[%clk 0:00:12.8]} 44... Kc6 {[%clk 0:00:33.7]} 45. g4 {[%clk 0:00:11.2]}
45... Kc5 {[%clk 0:00:32.2]} 46. h4 {[%clk 0:00:09]} 46... Ne5+ {[%clk
0:00:32.2]} 47. Kh5 {[%clk 0:00:08.5]} 47... g6+ {[%clk 0:00:28.6]} 48. Kxh6
{[%clk 0:00:08.8]} 48... Nxg4+ {[%clk 0:00:29.2]} 49. Kg5 {[%clk 0:00:09]} 49...
Ne5 {[%clk 0:00:28.9]} 50. Kf6 {[%clk 0:00:07.9]} 50... Nc6 {[%clk 0:00:26.1]}
51. Rb7 {[%clk 0:00:08]} 51... Rd6+ {[%clk 0:00:22.8]} 52. Kg5 {[%clk
0:00:08.2]} 52... Re5+ {[%clk 0:00:23]} 53. Kh6 {[%clk 0:00:07.1]} 53... Rh5+
{[%clk 0:00:22.7]} 54. Kg7 {[%clk 0:00:07.7]} 54... Rxh4 {[%clk 0:00:18.2]} 55.
Rxc7 {[%clk 0:00:08.2]} 55... Rhd4 {[%clk 0:00:17.7]} 56. Kh6 {[%clk 0:00:07.4]}
56... g5+ {[%clk 0:00:08.2]} 57. Kh5 {[%clk 0:00:07.6]} 57... g4 {[%clk
0:00:07.6]} 58. Kh4 {[%clk 0:00:07]} 58... g3+ {[%clk 0:00:05.1]} 59. Kxg3
{[%clk 0:00:06.8]} 59... Rd3+ {[%clk 0:00:05.4]} 60. Kf2 {[%clk 0:00:07]} 1-0